[Event "Late-Titled-Tuesday-Blitz-February-27-2024"]
[Site "Chess.com"]
[Date "2024.02.27"]
[Round "3"]
[White "LyonBeast"]
[Black "ameetghasi100"]
[Result "1-0"]
[WhiteElo "3132"]
[BlackElo "2750"]
[TimeControl "180+1"]
[EndTime "14:29:41 PST"]
[Termination "LyonBeast won by resignation"]

1. Nf3 {[%clk 0:03:00.9]} 1... g6 {[%clk 0:03:00.2]} 2. d4 {[%clk 0:03:00.2]}
2... Bg7 {[%clk 0:03:01.1]} 3. e4 {[%clk 0:02:59.8]} 3... d6 {[%clk 0:03:01.4]}
4. c3 {[%clk 0:02:59]} 4... Nf6 {[%clk 0:03:01.9]} 5. Bd3 {[%clk 0:02:58.3]}
5... O-O {[%clk 0:03:01.7]} 6. O-O {[%clk 0:02:57.6]} 6... Nc6 {[%clk
0:03:02.2]} 7. h3 {[%clk 0:02:56.4]} 7... e5 {[%clk 0:03:02]} 8. d5 {[%clk
0:02:54.7]} 8... Nb8 {[%clk 0:03:01.3]} 9. c4 {[%clk 0:02:53.9]} 9... a5 {[%clk
0:03:01.5]} 10. Nc3 {[%clk 0:02:52.9]} 10... Na6 {[%clk 0:03:01.7]} 11. Re1
{[%clk 0:02:50.4]} 11... Nc5 {[%clk 0:03:02]} 12. Bf1 {[%clk 0:02:50.3]} 12...
Bd7 {[%clk 0:02:49.1]} 13. Qc2 {[%clk 0:02:41]} 13... c6 {[%clk 0:02:48.7]} 14.
Be3 {[%clk 0:02:38.4]} 14... cxd5 {[%clk 0:02:48.4]} 15. Bxc5 {[%clk 0:02:33.2]}
15... dxc5 {[%clk 0:02:11.6]} 16. exd5 {[%clk 0:02:32.9]} 16... e4 {[%clk
0:02:05.8]} 17. Nd2 {[%clk 0:02:28.4]} 17... Re8 {[%clk 0:01:58.9]} 18. Ndxe4
{[%clk 0:02:28.1]} 18... Nxe4 {[%clk 0:01:59]} 19. Nxe4 {[%clk 0:02:25.2]} 19...
Bf5 {[%clk 0:01:58.2]} 20. Bd3 {[%clk 0:02:25.2]} 20... Bd4 {[%clk 0:01:57.3]}
21. Ng3 {[%clk 0:02:19.8]} 21... Bd7 {[%clk 0:01:49.4]} 22. Rxe8+ {[%clk
0:02:06.4]} 22... Qxe8 {[%clk 0:01:50.3]} 23. Kf1 {[%clk 0:02:06.4]} 23... Qe5
{[%clk 0:01:20.7]} 24. Re1 {[%clk 0:02:05]} 24... Qf6 {[%clk 0:01:21.1]} 25. Re2
{[%clk 0:01:53.7]} 25... a4 {[%clk 0:01:20.4]} 26. Qd2 {[%clk 0:01:53.1]} 26...
Kg7 {[%clk 0:01:16.6]} 27. Ne4 {[%clk 0:01:51.8]} 27... Qb6 {[%clk 0:01:12.4]}
28. Qf4 {[%clk 0:01:40.1]} 28... Ra6 {[%clk 0:00:44.5]} 29. h4 {[%clk
0:01:29.4]} 29... h6 {[%clk 0:00:44.5]} 30. h5 {[%clk 0:01:16.7]} 30... g5
{[%clk 0:00:33.2]} 31. Nxg5 {[%clk 0:01:16.8]} 31... Qf6 {[%clk 0:00:33.5]} 32.
Qxf6+ {[%clk 0:01:10.2]} 32... Rxf6 {[%clk 0:00:33.9]} 33. Nf3 {[%clk
0:01:07.7]} 33... Rf4 {[%clk 0:00:28.1]} 34. Nxd4 {[%clk 0:01:04.2]} 34... Rxd4
{[%clk 0:00:27.9]} 35. Re3 {[%clk 0:01:03.3]} 35... Bg4 {[%clk 0:00:28]} 36. Re4
{[%clk 0:00:54.9]} 36... Rxe4 {[%clk 0:00:15.6]} 37. Bxe4 {[%clk 0:00:53.8]}
37... Kf6 {[%clk 0:00:16]} 38. f3 {[%clk 0:00:50.8]} 38... Bd7 {[%clk
0:00:12.2]} 39. Kf2 {[%clk 0:00:49.9]} 39... Ke5 {[%clk 0:00:10.3]} 40. Ke3
{[%clk 0:00:49.5]} 40... f5 {[%clk 0:00:11.2]} 41. f4+ {[%clk 0:00:49.4]} 41...
Kd6 {[%clk 0:00:10.2]} 42. Bc2 {[%clk 0:00:49.4]} 42... b6 {[%clk 0:00:08.7]}
43. Kd2 {[%clk 0:00:47.6]} 43... Ke7 {[%clk 0:00:08.3]} 44. Kc3 {[%clk
0:00:46.9]} 44... Kf6 {[%clk 0:00:08.5]} 45. b3 {[%clk 0:00:46.5]} 45... axb3
{[%clk 0:00:08.5]} 46. Kxb3 {[%clk 0:00:46.4]} 46... Be8 {[%clk 0:00:08.8]} 47.
Bd1 {[%clk 0:00:46.7]} 47... Ke7 {[%clk 0:00:08.9]} 48. Kc3 {[%clk 0:00:44.1]}
48... Kd6 {[%clk 0:00:08.7]} 49. Bc2 {[%clk 0:00:42]} 49... Bd7 {[%clk 0:00:09]}
50. Kb2 {[%clk 0:00:41.9]} 50... Ke7 {[%clk 0:00:08.1]} 51. Ka3 {[%clk
0:00:42.2]} 51... Kf6 {[%clk 0:00:05]} 52. Ba4 {[%clk 0:00:42.7]} 52... Bc8
{[%clk 0:00:05.3]} 53. Bb5 {[%clk 0:00:41.5]} 53... Ke7 {[%clk 0:00:05.3]} 54.
Kb3 {[%clk 0:00:41.5]} 54... Kd6 {[%clk 0:00:05.6]} 55. a4 {[%clk 0:00:39.2]}
55... Kc7 {[%clk 0:00:04.8]} 56. g3 {[%clk 0:00:31.8]} 56... Kd6 {[%clk
0:00:04.3]} 57. a5 {[%clk 0:00:31.9]} 57... bxa5 {[%clk 0:00:04.4]} 58. Ka4
{[%clk 0:00:32.5]} 58... Kc7 {[%clk 0:00:02.5]} 59. Kxa5 {[%clk 0:00:32.8]}
59... Bb7 {[%clk 0:00:02.9]} 60. Ba6 {[%clk 0:00:33.2]} 60... Ba8 {[%clk
0:00:03.1]} 61. Kb5 {[%clk 0:00:33.1]} 61... Kd6 {[%clk 0:00:03.3]} 62. Bc8
{[%clk 0:00:33.5]} 62... Bxd5 {[%clk 0:00:03.3]} 63. cxd5 {[%clk 0:00:33.7]}
63... Kxd5 {[%clk 0:00:04.2]} 64. Bxf5 {[%clk 0:00:34.1]} 64... Kd4 {[%clk
0:00:05.1]} 65. g4 {[%clk 0:00:34.5]} 65... Ke3 {[%clk 0:00:06]} 66. g5 {[%clk
0:00:35.1]} 66... Kxf4 {[%clk 0:00:06.6]} 67. gxh6 {[%clk 0:00:35.4]} 67... Kxf5
{[%clk 0:00:07.5]} 68. h7 {[%clk 0:00:36]} 68... Kg5 {[%clk 0:00:08.4]} 69. h8=Q
{[%clk 0:00:36.5]} 69... Kg4 {[%clk 0:00:08.9]} 1-0

[Event "Late-Titled-Tuesday-Blitz-February-27-2024"]
[Site "Chess.com"]
[Date "2024.02.27"]
[Round "3"]
[White "sotochess"]
[Black "Matalon"]
[Result "1-0"]
[WhiteElo "2642"]
[BlackElo "2451"]
[TimeControl "180+1"]
[EndTime "14:29:42 PST"]
[Termination "sotochess won on time"]

1. e4 {[%clk 0:03:00]} 1... c5 {[%clk 0:02:56.1]} 2. Nf3 {[%clk 0:02:59.2]} 2...
d6 {[%clk 0:02:55.9]} 3. d4 {[%clk 0:02:58]} 3... cxd4 {[%clk 0:02:54.8]} 4.
Nxd4 {[%clk 0:02:58.9]} 4... Nf6 {[%clk 0:02:54.8]} 5. f3 {[%clk 0:02:59.4]}
5... e5 {[%clk 0:02:55.5]} 6. Bb5+ {[%clk 0:02:58.5]} 6... Bd7 {[%clk
0:02:45.7]} 7. Bxd7+ {[%clk 0:02:56.6]} 7... Qxd7 {[%clk 0:02:46.3]} 8. Nf5
{[%clk 0:02:57.1]} 8... d5 {[%clk 0:02:46.4]} 9. Bg5 {[%clk 0:02:57.5]} 9...
dxe4 {[%clk 0:02:44.4]} 10. Bxf6 {[%clk 0:02:57.1]} 10... gxf6 {[%clk 0:02:45]}
11. fxe4 {[%clk 0:02:49.8]} 11... Qxd1+ {[%clk 0:02:40.7]} 12. Kxd1 {[%clk
0:02:49.4]} 12... Rg8 {[%clk 0:02:40.3]} 13. g3 {[%clk 0:02:48.1]} 13... Na6
{[%clk 0:02:34.1]} 14. c3 {[%clk 0:02:12.6]} 14... Nc5 {[%clk 0:02:23.7]} 15.
Nd2 {[%clk 0:02:09.4]} 15... Rd8 {[%clk 0:02:12.4]} 16. Kc2 {[%clk 0:02:08.9]}
16... Rg5 {[%clk 0:02:01.3]} 17. Rhf1 {[%clk 0:02:07.4]} 17... h5 {[%clk
0:01:47.8]} 18. Rf3 {[%clk 0:02:00.2]} 18... Rg4 {[%clk 0:01:41.2]} 19. Re1
{[%clk 0:01:54.6]} 19... h4 {[%clk 0:01:30.6]} 20. h3 {[%clk 0:01:50.7]} 20...
Rg8 {[%clk 0:01:11]} 21. g4 {[%clk 0:01:49.2]} 21... Rh8 {[%clk 0:01:00.2]} 22.
b4 {[%clk 0:01:42.8]} 22... Ne6 {[%clk 0:00:58.8]} 23. Nc4 {[%clk 0:01:37.7]}
23... Nf4 {[%clk 0:00:32.3]} 24. a4 {[%clk 0:01:22.3]} 24... Rd7 {[%clk
0:00:30]} 25. g5 {[%clk 0:01:13]} 25... fxg5 {[%clk 0:00:19.9]} 26. Nxe5 {[%clk
0:01:12]} 26... Rc7 {[%clk 0:00:20.1]} 27. Kb3 {[%clk 0:01:09.8]} 27... f6
{[%clk 0:00:18.5]} 28. Ng4 {[%clk 0:01:08.9]} 28... Kf7 {[%clk 0:00:18.1]} 29.
e5 {[%clk 0:01:06.2]} 29... Kg6 {[%clk 0:00:17.7]} 30. Nd4 {[%clk 0:00:59]}
30... f5 {[%clk 0:00:17.5]} 31. Ne3 {[%clk 0:00:56.3]} 31... Bg7 {[%clk
0:00:17.1]} 32. Nexf5 {[%clk 0:00:55.4]} 32... Rhc8 {[%clk 0:00:16.2]} 33. Nd6
{[%clk 0:00:42.2]} 33... Rd8 {[%clk 0:00:13.4]} 34. N4f5 {[%clk 0:00:41.5]}
34... Rcd7 {[%clk 0:00:10.8]} 35. Nxh4+ {[%clk 0:00:40.8]} 35... gxh4 {[%clk
0:00:09.3]} 36. Rxf4 {[%clk 0:00:37.6]} 36... Bxe5 {[%clk 0:00:08.4]} 37. Rxe5
{[%clk 0:00:36.8]} 37... Rxd6 {[%clk 0:00:08.6]} 38. Rxh4 {[%clk 0:00:37.7]}
38... Rd3 {[%clk 0:00:07.6]} 39. Rc5 {[%clk 0:00:34.6]} 39... b6 {[%clk
0:00:06.8]} 40. Rc7 {[%clk 0:00:34.4]} 40... a5 {[%clk 0:00:07.3]} 41. Rc6+
{[%clk 0:00:32.3]} 41... Kg5 {[%clk 0:00:06.3]} 42. Rg4+ {[%clk 0:00:31.7]}
42... Kf5 {[%clk 0:00:05.3]} 43. bxa5 {[%clk 0:00:31]} 43... bxa5 {[%clk
0:00:05.8]} 44. Rc5+ {[%clk 0:00:31.3]} 44... Kf6 {[%clk 0:00:06.4]} 45. Rxa5
{[%clk 0:00:31.5]} 45... Rxh3 {[%clk 0:00:06.4]} 46. Rb5 {[%clk 0:00:30.7]}
46... Rc8 {[%clk 0:00:05.9]} 47. Rc4 {[%clk 0:00:31]} 47... Rxc4 {[%clk
0:00:04.9]} 48. Kxc4 {[%clk 0:00:30.8]} 48... Kg6 {[%clk 0:00:04.6]} 49. Rd5
{[%clk 0:00:30.2]} 49... Kf6 {[%clk 0:00:04.5]} 50. a5 {[%clk 0:00:29.9]} 50...
Ke6 {[%clk 0:00:04.9]} 51. Rd4 {[%clk 0:00:30.1]} 51... Rh5 {[%clk 0:00:03.9]}
52. Kb4 {[%clk 0:00:30]} 52... Rh1 {[%clk 0:00:02.6]} 53. a6 {[%clk 0:00:29.3]}
53... Rb1+ {[%clk 0:00:03.1]} 54. Kc5 {[%clk 0:00:29.2]} 54... Ra1 {[%clk
0:00:03.8]} 55. Kb6 {[%clk 0:00:29.1]} 55... Rb1+ {[%clk 0:00:04.5]} 56. Rb4
{[%clk 0:00:29.1]} 56... Ra1 {[%clk 0:00:03.7]} 57. c4 {[%clk 0:00:28.8]} 57...
Kd7 {[%clk 0:00:04.5]} 58. c5 {[%clk 0:00:28.8]} 58... Kc8 {[%clk 0:00:05.1]}
59. a7 {[%clk 0:00:28.7]} 59... Ra2 {[%clk 0:00:05.2]} 60. Rh4 {[%clk
0:00:25.9]} 60... Rb2+ {[%clk 0:00:05.3]} 61. Kc6 {[%clk 0:00:26]} 1-0

[Event "Late-Titled-Tuesday-Blitz-February-27-2024"]
[Site "Chess.com"]
[Date "2024.02.27"]
[Round "3"]
[White "SilverSwords13"]
[Black "chessisveryfun1264"]
[Result "1/2-1/2"]
[WhiteElo "2463"]
[BlackElo "2634"]
[TimeControl "180+1"]
[EndTime "14:29:51 PST"]
[Termination "Game drawn by agreement"]

1. e4 {[%clk 0:02:54.4]} 1... e6 {[%clk 0:03:00.9]} 2. d4 {[%clk 0:02:54.5]}
2... d5 {[%clk 0:02:55.1]} 3. Nc3 {[%clk 0:02:48.7]} 3... Bb4 {[%clk 0:02:53.7]}
4. e5 {[%clk 0:02:48.9]} 4... Ne7 {[%clk 0:02:52.7]} 5. a3 {[%clk 0:02:42]} 5...
Bxc3+ {[%clk 0:02:43]} 6. bxc3 {[%clk 0:02:42.9]} 6... c5 {[%clk 0:02:43.2]} 7.
Nf3 {[%clk 0:02:42.5]} 7... Qa5 {[%clk 0:02:42.6]} 8. Bd2 {[%clk 0:02:40.6]}
8... Qa4 {[%clk 0:02:43.2]} 9. Qb1 {[%clk 0:02:35.8]} 9... a6 {[%clk 0:02:41.5]}
10. Qb3 {[%clk 0:02:33.6]} 10... Qxb3 {[%clk 0:02:36.7]} 11. cxb3 {[%clk
0:02:34.5]} 11... Nbc6 {[%clk 0:02:35.7]} 12. Bd3 {[%clk 0:02:27]} 12... cxd4
{[%clk 0:02:32.7]} 13. cxd4 {[%clk 0:02:27.9]} 13... Bd7 {[%clk 0:02:32.5]} 14.
Ke2 {[%clk 0:02:22.2]} 14... f6 {[%clk 0:02:33]} 15. exf6 {[%clk 0:02:18.3]}
15... gxf6 {[%clk 0:02:33.9]} 16. Bh6 {[%clk 0:02:16.6]} 16... Kf7 {[%clk
0:02:32.4]} 17. Rac1 {[%clk 0:02:11]} 17... Na5 {[%clk 0:02:29.9]} 18. b4 {[%clk
0:02:04.1]} 18... Nc4 {[%clk 0:02:29.4]} 19. Rc3 {[%clk 0:01:56.7]} 19... Rac8
{[%clk 0:02:22]} 20. Rhc1 {[%clk 0:01:52.9]} 20... Rhg8 {[%clk 0:02:14.8]} 21.
g3 {[%clk 0:01:39.7]} 21... Bb5 {[%clk 0:02:10.2]} 22. Nd2 {[%clk 0:01:32.2]}
22... Nd6 {[%clk 0:02:06.5]} 23. Rxc8 {[%clk 0:01:26.4]} 23... Rxc8 {[%clk
0:02:05.4]} 24. Rc5 {[%clk 0:01:22.5]} 24... b6 {[%clk 0:01:25.6]} 25. Rxc8
{[%clk 0:01:19.5]} 25... Nexc8 {[%clk 0:01:19.4]} 26. a4 {[%clk 0:01:05.2]}
26... Bxa4 {[%clk 0:00:52.3]} 27. Bxa6 {[%clk 0:01:03.7]} 27... Bb5+ {[%clk
0:00:53.2]} 28. Bxb5 {[%clk 0:01:01.8]} 28... Nxb5 {[%clk 0:00:54.1]} 29. Kd3
{[%clk 0:01:02.2]} 29... Ne7 {[%clk 0:00:49.9]} 30. Bf4 {[%clk 0:01:01.3]} 30...
Nc6 {[%clk 0:00:50.4]} 31. Nb3 {[%clk 0:00:54.5]} 31... Nxb4+ {[%clk 0:00:46.4]}
32. Kd2 {[%clk 0:00:54.8]} 32... Nc6 {[%clk 0:00:45.1]} 33. Kd3 {[%clk
0:00:53.1]} 33... e5 {[%clk 0:00:45.7]} 34. dxe5 {[%clk 0:00:53.5]} 34... fxe5
{[%clk 0:00:46.6]} 35. Be3 {[%clk 0:00:50.9]} 35... e4+ {[%clk 0:00:41.1]} 36.
Kd2 {[%clk 0:00:50.3]} 36... d4 {[%clk 0:00:31.5]} 37. Bg5 {[%clk 0:00:50.4]}
37... Ne5 {[%clk 0:00:25]} 38. Bd8 {[%clk 0:00:50.4]} 38... Nc4+ {[%clk
0:00:17.5]} 39. Ke1 {[%clk 0:00:46.6]} 39... d3 {[%clk 0:00:16.7]} 40. Nd2
{[%clk 0:00:39.1]} 40... Nc3 {[%clk 0:00:13.1]} 41. Nxc4 {[%clk 0:00:38.1]}
41... b5 {[%clk 0:00:13.4]} 42. Nd2 {[%clk 0:00:31.9]} 42... Ke6 {[%clk
0:00:12.2]} 43. Ba5 {[%clk 0:00:32.5]} 43... Na2 {[%clk 0:00:07.5]} 44. Nxe4
{[%clk 0:00:31.5]} 44... b4 {[%clk 0:00:08.1]} 45. Nc5+ {[%clk 0:00:31.8]} 45...
Kd5 {[%clk 0:00:08.6]} 46. Nxd3 {[%clk 0:00:32.4]} 46... Kd4 {[%clk 0:00:09]}
47. Kd2 {[%clk 0:00:32.6]} 47... b3 {[%clk 0:00:08.9]} 48. f4 {[%clk 0:00:32.4]}
48... h5 {[%clk 0:00:07.2]} 49. f5 {[%clk 0:00:31.9]} 49... Kd5 {[%clk
0:00:06.8]} 50. Bc3 {[%clk 0:00:29.8]} 50... Nxc3 {[%clk 0:00:04.6]} 51. Kxc3
{[%clk 0:00:30.7]} 51... Ke4 {[%clk 0:00:04.7]} 52. f6 {[%clk 0:00:30.6]} 52...
b2 {[%clk 0:00:04.7]} 53. f7 {[%clk 0:00:31.5]} 53... b1=Q {[%clk 0:00:04.8]}
54. Nc5+ {[%clk 0:00:28.8]} 54... Kd5 {[%clk 0:00:04.8]} 55. f8=Q {[%clk
0:00:29.2]} 55... Qc1+ {[%clk 0:00:05.4]} 56. Kb4 {[%clk 0:00:29.3]} 56... Qc4+
{[%clk 0:00:05.8]} 57. Ka5 {[%clk 0:00:28]} 57... Qxc5+ {[%clk 0:00:06.5]} 58.
Qxc5+ {[%clk 0:00:28.5]} 58... Kxc5 {[%clk 0:00:07.4]} 59. Ka4 {[%clk
0:00:24.9]} 59... Kc4 {[%clk 0:00:07.5]} 60. Ka3 {[%clk 0:00:25.1]} 60... Kc3
{[%clk 0:00:08.1]} 61. Ka2 {[%clk 0:00:20.4]} 61... Kc2 {[%clk 0:00:06.7]} 62.
h3 {[%clk 0:00:12.4]} 62... Kd3 {[%clk 0:00:07.3]} 63. Kb3 {[%clk 0:00:13.1]}
63... Ke4 {[%clk 0:00:07.2]} 64. Kc3 {[%clk 0:00:11.4]} 64... Kf3 {[%clk
0:00:07.5]} 65. g4 {[%clk 0:00:11.2]} 1/2-1/2

[Event "Late-Titled-Tuesday-Blitz-February-27-2024"]
[Site "Chess.com"]
[Date "2024.02.27"]
[Round "3"]
[White "nobodyperfect13"]
[Black "krucki03"]
[Result "1/2-1/2"]
[WhiteElo "2187"]
[BlackElo "2522"]
[TimeControl "180+1"]
[EndTime "14:30:09 PST"]
[Termination "Game drawn by repetition"]

1. e4 {[%clk 0:03:00.9]} 1... c5 {[%clk 0:02:59]} 2. Nf3 {[%clk 0:02:58.2]} 2...
d6 {[%clk 0:02:58.8]} 3. d4 {[%clk 0:02:57.7]} 3... cxd4 {[%clk 0:02:59.7]} 4.
Nxd4 {[%clk 0:02:57]} 4... Nf6 {[%clk 0:02:59.8]} 5. Nc3 {[%clk 0:02:55.9]} 5...
g6 {[%clk 0:03:00.4]} 6. Be3 {[%clk 0:02:51.3]} 6... Bg7 {[%clk 0:03:00.5]} 7.
f3 {[%clk 0:02:51.1]} 7... O-O {[%clk 0:03:01.1]} 8. Qd2 {[%clk 0:02:51.2]} 8...
Nc6 {[%clk 0:03:01.7]} 9. g4 {[%clk 0:02:45]} 9... e6 {[%clk 0:02:59.6]} 10.
O-O-O {[%clk 0:02:42.7]} 10... d5 {[%clk 0:02:57.4]} 11. exd5 {[%clk 0:02:41.5]}
11... Nxd5 {[%clk 0:02:53.9]} 12. Nxc6 {[%clk 0:02:41.2]} 12... bxc6 {[%clk
0:02:53.7]} 13. Bd4 {[%clk 0:02:41.2]} 13... Bxd4 {[%clk 0:02:50.1]} 14. Qxd4
{[%clk 0:02:40.8]} 14... Qb6 {[%clk 0:02:50.7]} 15. Na4 {[%clk 0:02:36.2]} 15...
Qa5 {[%clk 0:02:27.7]} 16. b3 {[%clk 0:02:31.7]} 16... Rb8 {[%clk 0:02:23]} 17.
Qc5 {[%clk 0:02:29.8]} 17... Qc7 {[%clk 0:02:22.1]} 18. Bc4 {[%clk 0:02:28.5]}
18... Qf4+ {[%clk 0:02:20.5]} 19. Kb1 {[%clk 0:02:27.9]} 19... Qxf3 {[%clk
0:02:02.2]} 20. g5 {[%clk 0:02:18.4]} 20... Qf5 {[%clk 0:01:54.9]} 21. Qxa7
{[%clk 0:02:10]} 21... Bb7 {[%clk 0:01:43.8]} 22. Bxd5 {[%clk 0:01:59.3]} 22...
cxd5 {[%clk 0:01:43.8]} 23. Nc5 {[%clk 0:01:59.2]} 23... Bc6 {[%clk 0:00:51.7]}
24. Rdf1 {[%clk 0:01:52.6]} 24... Qxg5 {[%clk 0:00:46.2]} 25. Rxf7 {[%clk
0:01:51.7]} 25... Qh5 {[%clk 0:00:17.6]} 26. Rhf1 {[%clk 0:01:44.6]} 26... g5
{[%clk 0:00:10.1]} 27. Rxf8+ {[%clk 0:01:37.2]} 27... Rxf8 {[%clk 0:00:09.7]}
28. Rxf8+ {[%clk 0:01:35.6]} 28... Kxf8 {[%clk 0:00:10.1]} 29. Qb8+ {[%clk
0:01:35.1]} 29... Qe8 {[%clk 0:00:05.5]} 30. Qd6+ {[%clk 0:01:34.1]} 30... Kf7
{[%clk 0:00:04.6]} 31. Qe5 {[%clk 0:01:32]} 31... h6 {[%clk 0:00:03.9]} 32. a4
{[%clk 0:01:30.6]} 32... Qe7 {[%clk 0:00:03.5]} 33. Nd3 {[%clk 0:01:30.1]} 33...
Be8 {[%clk 0:00:02.2]} 34. a5 {[%clk 0:01:26.2]} 34... Bb5 {[%clk 0:00:02.4]}
35. Nf2 {[%clk 0:01:18.1]} 35... Qa7 {[%clk 0:00:02.7]} 36. Ng4 {[%clk
0:01:13.8]} 36... Qg1+ {[%clk 0:00:02.9]} 37. Kb2 {[%clk 0:01:12.2]} 37... Qxg4
{[%clk 0:00:03.8]} 38. Qc7+ {[%clk 0:01:11]} 38... Kf6 {[%clk 0:00:04.4]} 39.
Qd8+ {[%clk 0:01:10]} 39... Kf5 {[%clk 0:00:05]} 40. Qb6 {[%clk 0:01:09.1]}
40... Qb4 {[%clk 0:00:04.1]} 41. a6 {[%clk 0:01:08.1]} 41... d4 {[%clk 0:00:03]}
42. a7 {[%clk 0:01:06.9]} 42... Qc3+ {[%clk 0:00:03.6]} 43. Kb1 {[%clk
0:01:04.8]} 43... Bc6 {[%clk 0:00:04.2]} 44. Qb8 {[%clk 0:00:56.8]} 44... e5
{[%clk 0:00:04.2]} 45. a8=Q {[%clk 0:00:56.2]} 45... Bxa8 {[%clk 0:00:04.1]} 46.
Qxa8 {[%clk 0:00:56.6]} 46... e4 {[%clk 0:00:04.8]} 47. Qf8+ {[%clk 0:00:54.2]}
47... Kg4 {[%clk 0:00:05.2]} 48. Qe8 {[%clk 0:00:52.8]} 48... e3 {[%clk
0:00:05.3]} 49. Qe4+ {[%clk 0:00:52.4]} 49... Kh5 {[%clk 0:00:05.3]} 50. Qf3+
{[%clk 0:00:52.2]} 50... Kg6 {[%clk 0:00:05]} 51. Qe4+ {[%clk 0:00:52.4]} 51...
Kf6 {[%clk 0:00:05.5]} 52. Qf3+ {[%clk 0:00:49.8]} 52... Ke5 {[%clk 0:00:05.8]}
53. Qg3+ {[%clk 0:00:49.7]} 53... Kd5 {[%clk 0:00:05]} 54. Qf3+ {[%clk
0:00:50.1]} 54... Kc5 {[%clk 0:00:05.4]} 55. Qf8+ {[%clk 0:00:49.7]} 55... Kb5
{[%clk 0:00:05.6]} 56. Qb8+ {[%clk 0:00:49.3]} 56... Kc6 {[%clk 0:00:04.9]} 57.
Qc8+ {[%clk 0:00:49.4]} 57... Kd5 {[%clk 0:00:04.9]} 58. Qf5+ {[%clk 0:00:48]}
58... Kd6 {[%clk 0:00:04.6]} 59. Qf6+ {[%clk 0:00:48]} 59... Kc5 {[%clk
0:00:05.3]} 60. Qe7+ {[%clk 0:00:44.2]} 60... Kb5 {[%clk 0:00:05.6]} 61. Qb7+
{[%clk 0:00:43.9]} 61... Ka5 {[%clk 0:00:04.1]} 62. Qa7+ {[%clk 0:00:43.3]}
62... Kb5 {[%clk 0:00:03]} 63. Qb7+ {[%clk 0:00:43.9]} 63... Kc5 {[%clk
0:00:03.6]} 64. Qc7+ {[%clk 0:00:44.2]} 64... Kd5 {[%clk 0:00:04.2]} 65. Qd7+
{[%clk 0:00:41.4]} 65... Ke4 {[%clk 0:00:04.7]} 66. Qg4+ {[%clk 0:00:41.3]}
66... Ke5 {[%clk 0:00:05.1]} 67. Qg3+ {[%clk 0:00:39.9]} 67... Kf6 {[%clk
0:00:05.1]} 68. Qf3+ {[%clk 0:00:39.7]} 68... Kg7 {[%clk 0:00:04.1]} 69. Qb7+
{[%clk 0:00:39.5]} 69... Kg8 {[%clk 0:00:02]} 70. Qb8+ {[%clk 0:00:38.4]} 70...
Kf7 {[%clk 0:00:02.2]} 71. Qb7+ {[%clk 0:00:37.9]} 71... Kf6 {[%clk 0:00:02.5]}
72. Qf3+ {[%clk 0:00:37.2]} 1/2-1/2